[Event "Late-Titled-Tuesday-Blitz-June-18-2024"]
[Site "Chess.com"]
[Date "2024.06.18"]
[Round "8"]
[White "wonderfultime"]
[Black "MagnusCarlsen"]
[Result "1-0"]
[WhiteElo "3041"]
[BlackElo "3181"]
[TimeControl "180+1"]
[EndTime "15:29:39 PDT"]
[Termination "wonderfultime won on time"]

1. d4 {[%clk 0:02:53.1]} 1... Nf6 {[%clk 0:03:00.7]} 2. Nf3 {[%clk 0:02:52.2]}
2... b6 {[%clk 0:03:00.8]} 3. c4 {[%clk 0:02:51.5]} 3... Bb7 {[%clk 0:03:01]} 4.
Nc3 {[%clk 0:02:50.3]} 4... e6 {[%clk 0:03:01.3]} 5. a3 {[%clk 0:02:50.6]} 5...
g6 {[%clk 0:02:59]} 6. Bf4 {[%clk 0:02:46.9]} 6... Bg7 {[%clk 0:02:58.7]} 7. e3
{[%clk 0:02:46.8]} 7... O-O {[%clk 0:02:59]} 8. Be2 {[%clk 0:02:47.2]} 8... d6
{[%clk 0:02:59.6]} 9. O-O {[%clk 0:02:46.6]} 9... Nbd7 {[%clk 0:03:00.1]} 10.
Rc1 {[%clk 0:02:41.1]} 10... Qe7 {[%clk 0:02:58]} 11. b4 {[%clk 0:02:29.6]}
11... e5 {[%clk 0:02:53.4]} 12. Bg3 {[%clk 0:02:25]} 12... Rfe8 {[%clk 0:02:53]}
13. dxe5 {[%clk 0:02:22.9]} 13... dxe5 {[%clk 0:02:47]} 14. Nd5 {[%clk
0:02:17.8]} 14... Qd8 {[%clk 0:02:14.2]} 15. Qb3 {[%clk 0:02:16.4]} 15... Ne4
{[%clk 0:01:47.2]} 16. Rfd1 {[%clk 0:02:00.4]} 16... Nxg3 {[%clk 0:01:46.1]} 17.
hxg3 {[%clk 0:02:01.3]} 17... e4 {[%clk 0:01:20.1]} 18. Nd4 {[%clk 0:02:01.1]}
18... c6 {[%clk 0:01:19.7]} 19. Nc3 {[%clk 0:02:01]} 19... Qe7 {[%clk
0:01:17.2]} 20. b5 {[%clk 0:02:01.4]} 20... Nc5 {[%clk 0:00:54]} 21. Qb1 {[%clk
0:01:55.7]} 21... Rac8 {[%clk 0:00:50.3]} 22. bxc6 {[%clk 0:01:35.6]} 22... Bxc6
{[%clk 0:00:50.5]} 23. Nd5 {[%clk 0:01:36.3]} 23... Qe5 {[%clk 0:00:37.4]} 24.
Nxc6 {[%clk 0:01:25.7]} 24... Rxc6 {[%clk 0:00:38.3]} 25. Qb5 {[%clk 0:01:26]}
25... Rec8 {[%clk 0:00:33.8]} 26. Rc2 {[%clk 0:01:09.9]} 26... h5 {[%clk
0:00:26.1]} 27. Rcd2 {[%clk 0:01:10.2]} 27... Kh7 {[%clk 0:00:22.6]} 28. Nf4
{[%clk 0:01:01.8]} 28... Qc3 {[%clk 0:00:20.9]} 29. g4 {[%clk 0:00:51.6]} 29...
h4 {[%clk 0:00:18.8]} 30. Nh3 {[%clk 0:00:47.1]} 30... Qxa3 {[%clk 0:00:14.1]}
31. Ng5+ {[%clk 0:00:46.7]} 31... Kg8 {[%clk 0:00:14.1]} 32. Rd8+ {[%clk
0:00:46.2]} 32... Bf8 {[%clk 0:00:14.3]} 33. Re8 {[%clk 0:00:24.8]} 33... Qa2
{[%clk 0:00:08.6]} 34. Bf1 {[%clk 0:00:19.3]} 34... a6 {[%clk 0:00:08.4]} 35.
Rxc8 {[%clk 0:00:14.4]} 35... axb5 {[%clk 0:00:06.1]} 36. Rxc6 {[%clk
0:00:14.9]} 36... bxc4 {[%clk 0:00:05.8]} 37. Rd8 {[%clk 0:00:12.5]} 37... Kg7
{[%clk 0:00:02.5]} 38. Rc7 {[%clk 0:00:12.8]} 38... Kf6 {[%clk 0:00:02.5]} 39.
Nh7+ {[%clk 0:00:07.9]} 39... Kg7 {[%clk 0:00:02.8]} 40. Nxf8 {[%clk 0:00:07]}
40... c3 {[%clk 0:00:03]} 41. Nd7 {[%clk 0:00:03.8]} 41... c2 {[%clk 0:00:02.5]}
42. Nxc5 {[%clk 0:00:04.5]} 42... Qb1 {[%clk 0:00:01.4]} 43. Ne6+ {[%clk
0:00:04.2]} 43... Kf6 {[%clk 0:00:01.7]} 44. Rdc8 {[%clk 0:00:05.1]} 44... c1=Q
{[%clk 0:00:01.4]} 45. Rxc1 {[%clk 0:00:05.7]} 1-0

[Event "Late-Titled-Tuesday-Blitz-June-18-2024"]
[Site "Chess.com"]
[Date "2024.06.18"]
[Round "8"]
[White "Bala-Afiada"]
[Black "crazycheesecake"]
[Result "1-0"]
[WhiteElo "2059"]
[BlackElo "2070"]
[TimeControl "180+1"]
[EndTime "15:29:39 PDT"]
[Termination "Bala-Afiada won on time"]

1. d4 {[%clk 0:03:00.9]} 1... d5 {[%clk 0:02:59.7]} 2. c4 {[%clk 0:02:58.5]}
2... e6 {[%clk 0:02:59.2]} 3. Nf3 {[%clk 0:02:57.7]} 3... Nf6 {[%clk 0:02:59.6]}
4. Qc2 {[%clk 0:02:57.1]} 4... Be7 {[%clk 0:02:54.3]} 5. g3 {[%clk 0:02:56.7]}
5... O-O {[%clk 0:02:52.7]} 6. Bg2 {[%clk 0:02:56.1]} 6... c6 {[%clk 0:02:53]}
7. O-O {[%clk 0:02:55.4]} 7... b6 {[%clk 0:02:53.5]} 8. Nbd2 {[%clk 0:02:55.5]}
8... Bb7 {[%clk 0:02:51.4]} 9. e4 {[%clk 0:02:56.1]} 9... Na6 {[%clk 0:02:51.2]}
10. e5 {[%clk 0:02:55.3]} 10... Nd7 {[%clk 0:02:51.3]} 11. a3 {[%clk 0:02:52.7]}
11... c5 {[%clk 0:02:48.9]} 12. cxd5 {[%clk 0:02:45.1]} 12... Bxd5 {[%clk
0:02:48.2]} 13. Ne4 {[%clk 0:02:30]} 13... cxd4 {[%clk 0:02:34.8]} 14. Neg5
{[%clk 0:02:13.7]} 14... g6 {[%clk 0:02:27]} 15. b4 {[%clk 0:01:28.3]} 15... Rc8
{[%clk 0:02:20.8]} 16. Qb2 {[%clk 0:01:25.6]} 16... h6 {[%clk 0:02:14.2]} 17.
Nh3 {[%clk 0:01:14.3]} 17... Bxf3 {[%clk 0:01:38.9]} 18. Bxf3 {[%clk 0:01:11.9]}
18... Nxe5 {[%clk 0:01:38.6]} 19. Bb7 {[%clk 0:01:08.1]} 19... Nd3 {[%clk
0:01:37.7]} 20. Qd2 {[%clk 0:01:03.8]} 20... Rxc1 {[%clk 0:01:33.6]} 21. Raxc1
{[%clk 0:00:59.1]} 21... Nxc1 {[%clk 0:01:30.3]} 22. Bxa6 {[%clk 0:00:56.7]}
22... Nb3 {[%clk 0:01:22.1]} 23. Qxh6 {[%clk 0:00:53.6]} 23... Qd5 {[%clk
0:01:09.9]} 24. Bd3 {[%clk 0:00:49]} 24... Bf6 {[%clk 0:00:57.9]} 25. Nf4 {[%clk
0:00:46.1]} 25... Qb7 {[%clk 0:00:48.4]} 26. Nxg6 {[%clk 0:00:42.2]} 26... fxg6
{[%clk 0:00:43.7]} 27. Qxg6+ {[%clk 0:00:41.5]} 27... Qg7 {[%clk 0:00:40.8]} 28.
Qh5 {[%clk 0:00:42]} 28... Nd2 {[%clk 0:00:28.9]} 29. Rd1 {[%clk 0:00:40]} 29...
Bg5 {[%clk 0:00:27.4]} 30. Kg2 {[%clk 0:00:28.9]} 30... Nf3 {[%clk 0:00:20.5]}
31. Be4 {[%clk 0:00:25.9]} 31... Ne5 {[%clk 0:00:19.7]} 32. Rxd4 {[%clk
0:00:22.8]} 32... Ng4 {[%clk 0:00:18.7]} 33. Bh7+ {[%clk 0:00:19.8]} 33... Qxh7
{[%clk 0:00:15.9]} 34. Qxg5+ {[%clk 0:00:20.3]} 34... Qg7 {[%clk 0:00:16.1]} 35.
Qxg7+ {[%clk 0:00:20.6]} 35... Kxg7 {[%clk 0:00:16.2]} 36. Rxg4+ {[%clk
0:00:21.4]} 36... Kh7 {[%clk 0:00:13]} 37. Re4 {[%clk 0:00:22]} 37... Re8 {[%clk
0:00:12.5]} 38. f4 {[%clk 0:00:22.5]} 38... Kg6 {[%clk 0:00:12.8]} 39. g4 {[%clk
0:00:21.5]} 39... Kf6 {[%clk 0:00:12.8]} 40. Kf3 {[%clk 0:00:21.5]} 40... Rc8
{[%clk 0:00:12.3]} 41. h4 {[%clk 0:00:20.3]} 41... Rc3+ {[%clk 0:00:10.1]} 42.
Re3 {[%clk 0:00:20.8]} 42... Rc2 {[%clk 0:00:10]} 43. g5+ {[%clk 0:00:20.8]}
43... Kf7 {[%clk 0:00:08.1]} 44. h5 {[%clk 0:00:20.3]} 44... Rh2 {[%clk
0:00:06.6]} 45. h6 {[%clk 0:00:20.6]} 45... Rh3+ {[%clk 0:00:05.8]} 46. Ke4
{[%clk 0:00:20.2]} 46... Rh4 {[%clk 0:00:05.5]} 47. Ke5 {[%clk 0:00:19.3]} 47...
Rh2 {[%clk 0:00:05.5]} 48. f5 {[%clk 0:00:11.6]} 48... exf5 {[%clk 0:00:03.5]}
49. Kxf5 {[%clk 0:00:12.5]} 49... Rf2+ {[%clk 0:00:02.8]} 50. Ke5 {[%clk
0:00:12.8]} 50... Kg6 {[%clk 0:00:01.6]} 51. Rg3 {[%clk 0:00:11.2]} 1-0

[Event "Late-Titled-Tuesday-Blitz-June-18-2024"]
[Site "Chess.com"]
[Date "2024.06.18"]
[Round "8"]
[White "pinelone"]
[Black "szefru"]
[Result "0-1"]
[WhiteElo "2448"]
[BlackElo "2356"]
[TimeControl "180+1"]
[EndTime "15:29:46 PDT"]
[Termination "szefru won by checkmate"]

1. Nf3 {[%clk 0:03:00.9]} 1... Nf6 {[%clk 0:02:44.8]} 2. c4 {[%clk 0:03:00.6]}
2... g6 {[%clk 0:02:44.7]} 3. b3 {[%clk 0:03:00.5]} 3... Bg7 {[%clk 0:02:44.1]}
4. Bb2 {[%clk 0:03:00.9]} 4... O-O {[%clk 0:02:44.2]} 5. g3 {[%clk 0:03:01.4]}
5... c6 {[%clk 0:02:44.7]} 6. Bg2 {[%clk 0:03:01.4]} 6... d5 {[%clk 0:02:45.6]}
7. O-O {[%clk 0:03:01.6]} 7... Bg4 {[%clk 0:02:42.6]} 8. d3 {[%clk 0:02:59.9]}
8... Na6 {[%clk 0:02:33.1]} 9. Nbd2 {[%clk 0:02:59.3]} 9... c5 {[%clk
0:02:30.4]} 10. cxd5 {[%clk 0:02:55.1]} 10... Nxd5 {[%clk 0:02:28.6]} 11. Bxg7
{[%clk 0:02:54.4]} 11... Kxg7 {[%clk 0:02:29.5]} 12. Qc2 {[%clk 0:02:51.7]}
12... Rc8 {[%clk 0:02:18.8]} 13. a3 {[%clk 0:02:37.8]} 13... Kg8 {[%clk
0:02:12.1]} 14. Nc4 {[%clk 0:02:27.3]} 14... b5 {[%clk 0:02:07.6]} 15. Ne3
{[%clk 0:02:26.5]} 15... Nxe3 {[%clk 0:02:03.9]} 16. fxe3 {[%clk 0:02:26.8]}
16... c4 {[%clk 0:02:02.4]} 17. bxc4 {[%clk 0:01:52.2]} 17... bxc4 {[%clk
0:02:03.3]} 18. dxc4 {[%clk 0:01:45.8]} 18... Nc5 {[%clk 0:02:03]} 19. Nd4
{[%clk 0:01:40.9]} 19... e5 {[%clk 0:01:50.1]} 20. Nb5 {[%clk 0:01:35.3]} 20...
a6 {[%clk 0:01:27.2]} 21. Nc3 {[%clk 0:01:28.8]} 21... Qg5 {[%clk 0:01:19.6]}
22. Nd5 {[%clk 0:01:25.2]} 22... Bf5 {[%clk 0:00:41.6]} 23. e4 {[%clk
0:01:21.4]} 23... Be6 {[%clk 0:00:39.9]} 24. Qc1 {[%clk 0:01:02.2]} 24... Qd8
{[%clk 0:00:32.8]} 25. Rb1 {[%clk 0:01:00.5]} 25... Kg7 {[%clk 0:00:31.6]} 26.
Qc3 {[%clk 0:00:55.6]} 26... f6 {[%clk 0:00:31.6]} 27. Rfd1 {[%clk 0:00:51.8]}
27... Qe8 {[%clk 0:00:29.3]} 28. Qa5 {[%clk 0:00:45.8]} 28... Bg4 {[%clk
0:00:27.5]} 29. Bf3 {[%clk 0:00:44.2]} 29... h5 {[%clk 0:00:24.3]} 30. Rb6
{[%clk 0:00:38.6]} 30... Ne6 {[%clk 0:00:22.6]} 31. Bxg4 {[%clk 0:00:33.8]}
31... hxg4 {[%clk 0:00:22.7]} 32. e3 {[%clk 0:00:33.8]} 32... Rxc4 {[%clk
0:00:22.5]} 33. Qxa6 {[%clk 0:00:30.7]} 33... Ra4 {[%clk 0:00:11.1]} 34. Qd3
{[%clk 0:00:15.1]} 34... Nc5 {[%clk 0:00:10.9]} 35. Qc2 {[%clk 0:00:13.5]} 35...
Rxe4 {[%clk 0:00:09.7]} 36. Qxc5 {[%clk 0:00:12.1]} 36... Kh6 {[%clk 0:00:09.4]}
37. Nxf6 {[%clk 0:00:08.4]} 37... Qa4 {[%clk 0:00:09.7]} 38. Qc1 {[%clk
0:00:04.5]} 38... Rc4 {[%clk 0:00:09.2]} 39. Qd2 {[%clk 0:00:03.9]} 39... Rc2
{[%clk 0:00:09.1]} 40. Qe1 {[%clk 0:00:03.3]} 40... Qc4 {[%clk 0:00:06.7]} 41.
Qf1 {[%clk 0:00:02.1]} 41... Qc5 {[%clk 0:00:06.2]} 42. Nxg4+ {[%clk 0:00:01.7]}
42... Kg5 {[%clk 0:00:04.2]} 43. Rb7 {[%clk 0:00:02.2]} 43... Rxf1+ {[%clk
0:00:03.5]} 44. Rxf1 {[%clk 0:00:02.5]} 44... Kxg4 {[%clk 0:00:03.2]} 45. Rb4+
{[%clk 0:00:03.2]} 45... Kg5 {[%clk 0:00:03.1]} 46. h4+ {[%clk 0:00:02.8]} 46...
Kh6 {[%clk 0:00:02.6]} 47. Re4 {[%clk 0:00:03.5]} 47... Qd5 {[%clk 0:00:02]} 48.
Rg4 {[%clk 0:00:02.8]} 48... Qg2# {[%clk 0:00:02.3]} 0-1

[Event "Late-Titled-Tuesday-Blitz-June-18-2024"]
[Site "Chess.com"]
[Date "2024.06.18"]
[Round "8"]
[White "dretch"]
[Black "Mikayel99"]
[Result "1/2-1/2"]
[WhiteElo "2837"]
[BlackElo "2677"]
[TimeControl "180+1"]
[EndTime "15:29:47 PDT"]
[Termination "Game drawn - insufficient material"]

1. d4 {[%clk 0:03:00.9]} 1... d5 {[%clk 0:02:45.6]} 2. c4 {[%clk 0:03:01.2]}
2... e6 {[%clk 0:02:45.4]} 3. Nc3 {[%clk 0:03:01.7]} 3... Be7 {[%clk 0:02:44]}
4. cxd5 {[%clk 0:03:01.3]} 4... exd5 {[%clk 0:02:44.2]} 5. Bf4 {[%clk 0:03:02]}
5... c6 {[%clk 0:02:44.1]} 6. Qc2 {[%clk 0:02:57.4]} 6... Nf6 {[%clk 0:02:40.8]}
7. e3 {[%clk 0:02:56.7]} 7... Bg4 {[%clk 0:02:40.7]} 8. Nf3 {[%clk 0:02:49.4]}
8... Nbd7 {[%clk 0:02:37.5]} 9. Ne5 {[%clk 0:02:43]} 9... Bh5 {[%clk 0:02:32.6]}
10. Bd3 {[%clk 0:02:37.6]} 10... Nxe5 {[%clk 0:02:26.9]} 11. dxe5 {[%clk
0:02:36.6]} 11... Nd7 {[%clk 0:02:27.3]} 12. g4 {[%clk 0:02:27.7]} 12... Bg6
{[%clk 0:02:21.8]} 13. Bxg6 {[%clk 0:02:21.4]} 13... hxg6 {[%clk 0:02:13.9]} 14.
O-O-O {[%clk 0:02:21.2]} 14... Nc5 {[%clk 0:01:50.2]} 15. Kb1 {[%clk 0:02:13.8]}
15... Qb6 {[%clk 0:01:41.6]} 16. e4 {[%clk 0:02:11.1]} 16... d4 {[%clk
0:01:33.8]} 17. Na4 {[%clk 0:02:00.2]} 17... Nxa4 {[%clk 0:01:31.5]} 18. Qxa4
{[%clk 0:02:01.1]} 18... O-O-O {[%clk 0:01:29]} 19. Qc4 {[%clk 0:01:55.9]} 19...
Rhf8 {[%clk 0:01:18.1]} 20. e6 {[%clk 0:01:45.3]} 20... fxe6 {[%clk 0:01:17.5]}
21. Qxe6+ {[%clk 0:01:45.5]} 21... Rd7 {[%clk 0:01:17.9]} 22. Be5 {[%clk
0:01:38.7]} 22... c5 {[%clk 0:01:08.1]} 23. Qxb6 {[%clk 0:01:27]} 23... axb6
{[%clk 0:01:09]} 24. f4 {[%clk 0:01:17.3]} 24... Bf6 {[%clk 0:01:08.5]} 25. Bxf6
{[%clk 0:01:14.6]} 25... gxf6 {[%clk 0:01:09.4]} 26. h4 {[%clk 0:01:10.4]} 26...
Rh7 {[%clk 0:01:07.3]} 27. f5 {[%clk 0:01:03.7]} 27... gxf5 {[%clk 0:00:58.2]}
28. exf5 {[%clk 0:01:03.2]} 28... Rfh8 {[%clk 0:00:57.3]} 29. h5 {[%clk
0:00:46.1]} 29... Kd7 {[%clk 0:00:57.5]} 30. Rde1 {[%clk 0:00:45.6]} 30... Rg8
{[%clk 0:00:46.1]} 31. Re6 {[%clk 0:00:40.3]} 31... Rxg4 {[%clk 0:00:43.6]} 32.
Rxb6 {[%clk 0:00:39.8]} 32... Rh6 {[%clk 0:00:35.9]} 33. a4 {[%clk 0:00:16.5]}
33... Rf4 {[%clk 0:00:27.3]} 34. Rxb7+ {[%clk 0:00:16.2]} 34... Kc6 {[%clk
0:00:26]} 35. Rb8 {[%clk 0:00:15.6]} 35... Rxf5 {[%clk 0:00:21.6]} 36. a5 {[%clk
0:00:15.5]} 36... c4 {[%clk 0:00:22.1]} 37. a6 {[%clk 0:00:12.3]} 37... Ra5
{[%clk 0:00:22.2]} 38. Rh4 {[%clk 0:00:03.3]} 38... Rxa6 {[%clk 0:00:19]} 39.
Rxd4 {[%clk 0:00:03.5]} 39... Rxh5 {[%clk 0:00:17.1]} 40. Rxc4+ {[%clk 0:00:04]}
40... Kd6 {[%clk 0:00:14.4]} 41. Rd8+ {[%clk 0:00:02.8]} 41... Ke7 {[%clk
0:00:14.6]} 42. Rcc8 {[%clk 0:00:03]} 42... Rh2 {[%clk 0:00:13.3]} 43. Re8+
{[%clk 0:00:02.6]} 43... Kd7 {[%clk 0:00:11.5]} 44. Red8+ {[%clk 0:00:03.2]}
44... Ke7 {[%clk 0:00:12.1]} 45. Rg8 {[%clk 0:00:03.1]} 45... Rb6 {[%clk
0:00:11.7]} 46. Rg7+ {[%clk 0:00:02.9]} 46... Ke6 {[%clk 0:00:11.7]} 47. Rc2
{[%clk 0:00:02.4]} 47... Rxc2 {[%clk 0:00:10.1]} 48. Kxc2 {[%clk 0:00:02]} 48...
Kd5 {[%clk 0:00:09.4]} 49. Kc3 {[%clk 0:00:02.2]} 49... f5 {[%clk 0:00:09.4]}
50. b4 {[%clk 0:00:02.3]} 50... Rf6 {[%clk 0:00:08.7]} 51. Rg1 {[%clk
0:00:01.4]} 51... f4 {[%clk 0:00:09.1]} 52. Rd1+ {[%clk 0:00:02.1]} 52... Kc6
{[%clk 0:00:08]} 53. Kc4 {[%clk 0:00:02.3]} 53... f3 {[%clk 0:00:08.3]} 54. b5+
{[%clk 0:00:02.8]} 54... Kb6 {[%clk 0:00:08.7]} 55. Rf1 {[%clk 0:00:03.5]} 55...
Rf4+ {[%clk 0:00:08.7]} 56. Kd3 {[%clk 0:00:03.9]} 56... Kxb5 {[%clk 0:00:09.3]}
57. Ke3 {[%clk 0:00:04.5]} 57... Ra4 {[%clk 0:00:09.8]} 58. Rxf3 {[%clk
0:00:05.4]} 58... Ra3+ {[%clk 0:00:10.4]} 59. Ke4 {[%clk 0:00:06.1]} 59... Rxf3
{[%clk 0:00:11]} 60. Kxf3 {[%clk 0:00:07]} 1/2-1/2

[Event "Late-Titled-Tuesday-Blitz-June-18-2024"]
[Site "Chess.com"]
[Date "2024.06.18"]
[Round "8"]
[White "kleber2007"]
[Black "HouseOfDurin"]
[Result "1/2-1/2"]
[WhiteElo "2469"]
[BlackElo "2350"]
[TimeControl "180+1"]
[EndTime "15:29:47 PDT"]
[Termination "Game drawn by repetition"]

1. Nf3 {[%clk 0:03:00.9]} 1... g6 {[%clk 0:02:55.5]} 2. d4 {[%clk 0:03:00.2]}
2... Bg7 {[%clk 0:02:56.2]} 3. e4 {[%clk 0:03:00.2]} 3... d6 {[%clk 0:02:56.3]}
4. c3 {[%clk 0:02:59.9]} 4... a6 {[%clk 0:02:56.9]} 5. Bd3 {[%clk 0:02:59.3]}
5... b5 {[%clk 0:02:57.2]} 6. a4 {[%clk 0:02:59.2]} 6... bxa4 {[%clk 0:02:55.2]}
7. Qxa4+ {[%clk 0:02:58.1]} 7... Nd7 {[%clk 0:02:51.1]} 8. Bg5 {[%clk
0:02:57.2]} 8... h6 {[%clk 0:02:43.8]} 9. Bh4 {[%clk 0:02:57]} 9... g5 {[%clk
0:02:36.9]} 10. Bg3 {[%clk 0:02:56.3]} 10... Nf6 {[%clk 0:02:37.2]} 11. Nbd2
{[%clk 0:02:55.5]} 11... O-O {[%clk 0:02:35.6]} 12. O-O {[%clk 0:02:46.2]} 12...
Bb7 {[%clk 0:02:33.7]} 13. b4 {[%clk 0:02:37.2]} 13... Nh5 {[%clk 0:02:32.9]}
14. Qc2 {[%clk 0:02:30.1]} 14... Nxg3 {[%clk 0:02:32]} 15. hxg3 {[%clk
0:02:29.7]} 15... e5 {[%clk 0:02:28.7]} 16. dxe5 {[%clk 0:02:29.3]} 16... Nxe5
{[%clk 0:02:28.6]} 17. Nxe5 {[%clk 0:02:29.2]} 17... Bxe5 {[%clk 0:02:27.5]} 18.
Nc4 {[%clk 0:02:27.9]} 18... Bg7 {[%clk 0:02:26.7]} 19. Ne3 {[%clk 0:02:27.6]}
19... Qf6 {[%clk 0:02:24.5]} 20. Ra3 {[%clk 0:02:21.9]} 20... Rfe8 {[%clk
0:02:17.9]} 21. c4 {[%clk 0:02:17.9]} 21... Qb2 {[%clk 0:01:59.8]} 22. Qxb2
{[%clk 0:02:15.5]} 22... Bxb2 {[%clk 0:02:00.7]} 23. Ra2 {[%clk 0:02:12]} 23...
Bc3 {[%clk 0:01:52.9]} 24. Nd5 {[%clk 0:01:49.8]} 24... Bxd5 {[%clk 0:01:50.5]}
25. cxd5 {[%clk 0:01:50.7]} 25... Bxb4 {[%clk 0:01:50.4]} 26. Rc1 {[%clk
0:01:50.2]} 26... Bc5 {[%clk 0:01:45.9]} 27. Rca1 {[%clk 0:01:47.5]} 27... Reb8
{[%clk 0:01:37.8]} 28. Bxa6 {[%clk 0:01:40.1]} 28... Rb4 {[%clk 0:01:22]} 29.
Bd3 {[%clk 0:01:35.2]} 29... Rab8 {[%clk 0:01:17.3]} 30. Ra8 {[%clk 0:01:31.1]}
30... Kg7 {[%clk 0:01:09.8]} 31. Rxb8 {[%clk 0:01:30.5]} 31... Rxb8 {[%clk
0:01:10.7]} 32. Ra2 {[%clk 0:01:24.4]} 32... Rb3 {[%clk 0:01:09.5]} 33. Bf1
{[%clk 0:01:12.6]} 33... Kf6 {[%clk 0:01:05.1]} 34. g4 {[%clk 0:01:12]} 34...
Ke5 {[%clk 0:01:04.1]} 35. Re2 {[%clk 0:01:11.4]} 35... Rb4 {[%clk 0:00:58]} 36.
g3 {[%clk 0:01:04]} 36... Rxe4 {[%clk 0:00:58.1]} 37. Rxe4+ {[%clk 0:01:02.3]}
37... Kxe4 {[%clk 0:00:59]} 38. Bg2+ {[%clk 0:01:02.9]} 38... Kd3 {[%clk
0:00:59.4]} 39. Kf1 {[%clk 0:01:02.9]} 39... Kd2 {[%clk 0:00:56.2]} 40. Be4
{[%clk 0:01:01.4]} 40... Bd4 {[%clk 0:00:53.3]} 41. Bg2 {[%clk 0:01:00.7]} 41...
f6 {[%clk 0:00:53.3]} 42. Be4 {[%clk 0:01:00.5]} 42... Be5 {[%clk 0:00:52.6]}
43. Bg2 {[%clk 0:01:00.1]} 43... Kd3 {[%clk 0:00:51.3]} 44. Bf3 {[%clk
0:01:00.2]} 44... Bc3 {[%clk 0:00:50.4]} 45. Bg2 {[%clk 0:01:00.2]} 45... Kd4
{[%clk 0:00:50.5]} 46. Ke2 {[%clk 0:00:59.9]} 46... Ba5 {[%clk 0:00:47.4]} 47.
Bf3 {[%clk 0:00:59.3]} 47... Ke5 {[%clk 0:00:47.7]} 48. Bg2 {[%clk 0:00:58.7]}
48... Bb6 {[%clk 0:00:47.6]} 49. Bf3 {[%clk 0:00:58.7]} 49... Bc5 {[%clk
0:00:41.8]} 50. Bg2 {[%clk 0:00:58.6]} 50... f5 {[%clk 0:00:42.1]} 51. gxf5
{[%clk 0:00:52.8]} 51... Kxf5 {[%clk 0:00:43]} 52. Bh3+ {[%clk 0:00:51.7]} 52...
g4 {[%clk 0:00:43.1]} 53. Bg2 {[%clk 0:00:51.3]} 53... h5 {[%clk 0:00:42.4]} 54.
Bh1 {[%clk 0:00:51]} 54... Ke5 {[%clk 0:00:41.4]} 55. Bg2 {[%clk 0:00:51.1]}
55... Kf5 {[%clk 0:00:30.8]} 56. Bh1 {[%clk 0:00:51]} 56... Bd4 {[%clk
0:00:28.5]} 57. Bg2 {[%clk 0:00:50.7]} 57... Bf6 {[%clk 0:00:28.3]} 58. Bh1
{[%clk 0:00:50.8]} 58... Ke5 {[%clk 0:00:28.3]} 59. Bg2 {[%clk 0:00:49.5]} 59...
h4 {[%clk 0:00:26.7]} 60. gxh4 {[%clk 0:00:49.3]} 60... Bxh4 {[%clk 0:00:27.6]}
61. Bh1 {[%clk 0:00:48.3]} 61... Kf4 {[%clk 0:00:26]} 62. Bg2 {[%clk 0:00:48.5]}
62... Bf6 {[%clk 0:00:25.8]} 63. Bh1 {[%clk 0:00:48.5]} 63... Bd4 {[%clk
0:00:26.4]} 64. Bg2 {[%clk 0:00:48.6]} 64... Bc5 {[%clk 0:00:25.3]} 65. Bh1
{[%clk 0:00:48.7]} 65... Bd4 {[%clk 0:00:24]} 66. Bg2 {[%clk 0:00:48.9]} 66...
Bb6 {[%clk 0:00:24.1]} 67. Bh1 {[%clk 0:00:48.9]} 67... Bc5 {[%clk 0:00:24.4]}
68. Bg2 {[%clk 0:00:49]} 68... Bb6 {[%clk 0:00:24.7]} 69. Bh1 {[%clk 0:00:49]}
69... g3 {[%clk 0:00:24]} 70. fxg3+ {[%clk 0:00:45.8]} 70... Kxg3 {[%clk
0:00:24.9]} 71. Kd3 {[%clk 0:00:44.5]} 71... Kf4 {[%clk 0:00:25.1]} 72. Kc4
{[%clk 0:00:44.3]} 72... Ke5 {[%clk 0:00:22.8]} 73. Bg2 {[%clk 0:00:44.1]} 73...
Kf4 {[%clk 0:00:22.9]} 74. Bh3 {[%clk 0:00:44.2]} 74... Bc5 {[%clk 0:00:21.9]}
75. Bd7 {[%clk 0:00:44.6]} 75... Bb6 {[%clk 0:00:22]} 76. Bc6 {[%clk 0:00:45.5]}
76... Ke5 {[%clk 0:00:21.7]} 77. Kb5 {[%clk 0:00:46.4]} 77... Kd4 {[%clk
0:00:20.4]} 78. Ka6 {[%clk 0:00:47.3]} 78... Ke5 {[%clk 0:00:20.5]} 79. Kb5
{[%clk 0:00:48.2]} 79... Kd4 {[%clk 0:00:20.9]} 80. Kb4 {[%clk 0:00:47.6]} 80...
Ke5 {[%clk 0:00:21.2]} 81. Kb5 {[%clk 0:00:48.5]} 1/2-1/2